Cogmind - Beta 13 @@@ ROGUE MODE // 2024.05.01 @ 23:10:11 Player: Falling_Sands Result: Destroyed by G-47 Trooper with Particle Gun Performance ------------- Evolutions (1) 500 Regions Visited (4) 800 Robots Destroyed (47) 235 Value Destroyed (1474) 1474 Prototype IDs (4) 80 Alien Tech Used (0) 0 Bonus (50) 50 TOTAL SCORE: 3139 Bonus ------- Follower Combat Kills 50 Cogmind --------- Core Integrity 0/400 Matter 244/300 Energy 450/450 System Corruption 4% Temperature Cool (9) Movement Treading (240) Ox1 Location -9/Storage Parts ------- > --- POWER (1) -------- Ion Engine > --- PROPULSION (2) --- Improved Treads > --- UTILITY (4) ------ Medium Storage Unit Large Battery > --- WEAPON (2) ------- Improved Assault Rifle Improved Assault Rifle > --- INVENTORY (10) --- Improved Ion Engine Light Treads Improved Treads Large Matter Pod (150) Heavy Assault Rifle Mining Laser Peak State ------------ > --- POWER ------------ Improved Ion Engine > --- PROPULSION ------- Light Treads Improved Treads > --- UTILITY ---------- Medium Storage Unit High-capacity Battery Propulsion Shielding Shield Generator > --- WEAPON ----------- Assault Rifle Makeshift Sword > --- INVENTORY -------- Light Treads Light Treads Improved Treads Improved Treads Medium Storage Unit Large Matter Pod Medium Laser Mining Laser [Rating: 16] Favorites ----------- Power Light Ion Engine Engine Light Ion Engine Propulsion Improved Treads Treads Improved Treads Wheel Wheel Flight Unit VTOL Module Utility High-capacity Battery Device Sensor Array Storage High-capacity Battery Protection Propulsion Shielding Weapon Light Cannon Energy Gun Medium Laser Ballistic Gun Assault Rifle Ballistic Cannon Light Cannon Special Weapon Mining Laser Slashing Weapon Makeshift Sword Build | -11 -10 -10 -9 -9 ------- Run | Yrd Mat Min Mat Sto Slots Evolved 2 | . . . 2 . Power . | . . . . . Propulsion . | . . . . . Utility 2 | . . . 2 . Weapon . | . . . . . Parts Attached 42 | 6 18 1 5 12 Power 5 | 1 1 1 1 1 Engine 5 | 1 1 1 1 1 Core . | . . . . . Reactor . | . . . . . Propulsion 11 | 2 6 . 1 2 Treads 6 | . 3 . 1 2 Leg . | . . . . . Wheel 2 | 2 . . . . Hover . | . . . . . Flight 3 | . 3 . . . Utility 11 | 1 3 . 3 4 Device 2 | . . . . 2 Storage 6 | 1 3 . . 2 Processor . | . . . . . Hackware . | . . . . . Protection 3 | . . . 3 . Artifact . | . . . . . Weapon 15 | 2 8 . . 5 Energy Gun 4 | 1 2 . . 1 Energy Cannon . | . . . . . Ballistic Gun 7 | 1 3 . . 3 Ballistic Cannon 2 | . 2 . . . Launcher . | . . . . . Special Weapon 1 | . 1 . . . Impact Weapon . | . . . . . Slashing Weapon 1 | . . . . 1 Piercing Weapon . | . . . . . Special Melee Weapon . | . . . . . Unidentified Prototypes . | . . . . . Parts Lost 8 | . 1 . 1 6 Power 1 | . . . . 1 Propulsion 1 | . 1 . . . Utility 5 | . . . . 5 Weapon 1 | . . . 1 . Highest Loss Streak 2 | . 1 . 1 2 To Critical Strikes . | . . . . . Average Slot Usage (%) 89 | . 88 100 88 84 Engine 12 | . 14 14 11 10 Treads 22 | . 20 28 22 21 Wheel 1 | . 3 . . . Storage 22 | . 19 28 22 22 Protection 5 | . . . 15 8 Energy Gun 3 | . 6 . . 6 Ballistic Gun 3 | . 6 . . 5 Ballistic Cannon 13 | . 12 28 18 2 Slashing Weapon 1 | . . . . 5 Naked Turns . | . . . . . Heaviest Build 31 | 13 23 25 31 28 Greatest Support 43 | 20 43 43 43 43 Greatest Overweight (x) 4 | 1 4 . . . Average Overweight (x) . | . . . . . Largest Inventory Capacity 10 | 8 10 10 10 10 Average Capacity 9 | 6 8 10 10 10 Most Carried 10 | 4 10 10 10 10 Average Carried 7 | 2 6 9 9 7 Final Capacity 10 | 8 10 10 10 10 Final Carried 10 | 3 10 10 10 6 Class Distribution -------------------- 99% | Mutant Dominant Class ---------------- Mutant | -10/Materials Mutant | -10/Mines Mutant | -9/Materials Mutant | -9/Storage Resources | -11 -10 -10 -9 -9 ----------- Run | Yrd Mat Min Mat Sto Matter Collected 1198 | 215 405 29 337 212 Remotely . | . . . . . Salvage Created 1592 | . 452 . 447 693 Parts 84 | . 22 . 28 34 Haulers Intercepted . | . . . . . Recyclers Shooed 1 | . . . . 1 Parts Field Recycled . | . . . . . Retrieved Matter . | . . . . . Parts Self-Destructed . | . . . . . Prevented . | . . . . . Kills | -11 -10 -10 -9 -9 ------- Run | Yrd Mat Min Mat Sto Combat Hostiles Destroyed 39 | . 11 . 11 17 Guns 25 | . 8 . . 17 Cannons 14 | . 3 . 11 . Classes Destroyed 8 | . 3 . 4 1 Worker 1 | . . . 1 . Recycler 1 | . . . 1 . Operator 1 | . . . 1 . Watcher 5 | . 3 . 1 1 Swarmer 6 | . 3 . . 3 Grunt 24 | . 8 . 8 8 Duelist 1 | . . . . 1 Sentry 8 | . . . 3 5 Best Kill Streak 8 | . 5 . 5 8 Combat Bots Only 8 | . 3 . 4 8 Max Kills in Single Turn 1 | . 1 . 1 1 Gunslinging . | . . . . . Exploded . | . . . . . Melee . | . . . . . Uniques/NPCs Destroyed . | . . . . . Combat | -11 -10 -10 -9 -9 -------- Run | Yrd Mat Min Mat Sto Hostile Shots Fired 229 | . 45 . 64 120 Missed 58 | . 8 . 16 34 Damage Taken 2161 | . 405 . 671 1085 Core 501 | . 100 . 133 268 Absorbed by Shields 12 | . . . . 12 Redirected to Shielding 92 | . . . 40 52 Regen/Repaired (Parts) 130 | . 59 . 40 31 Core Remaining (%) 80 | 100 . 60 . . Volleys Fired 156 | . 46 . 45 65 Largest 2 | . 2 . 2 2 Hottest 100 | . 100 . 70 80 Shots Fired 233 | . 70 1 71 91 Gun 144 | . 57 . . 87 Cannon 82 | . 6 1 71 4 Launcher . | . . . . . Special 7 | . 7 . . . Kinetic 149 | . 27 1 71 50 Thermal 84 | . 43 . . 41 Explosive . | . . . . . Electromagnetic . | . . . . . Robot Hit Streak 23 | . 7 . 10 23 Robot Miss Streak 3 | . 3 . 2 2 Penetration Max . | . . . . . Secondary Targets 1 | . 1 . . . Max Gunslinging Chain 1 | . 1 . . . Shots Hit Robots 152 | . 39 . 48 65 Core Hits 73 | . 21 . 20 32 Critical Kills . | . . . . . Critical Parts Destroyed 1 | . 1 . . . Critical Strikes 9 | . 4 . 2 3 Burn 6 | . 3 . . 3 Destroy 1 | . 1 . . . Blast 2 | . . . 2 . Melee Attacks . | . . . . . Impact . | . . . . . Slashing . | . . . . . Piercing . | . . . . . Sneak Attacks . | . . . . . Combat Hostiles . | . . . . . Follow-up Attacks . | . . . . . Damage Inflicted 2104 | . 461 . 846 797 Guns 1184 | . 387 . . 797 Cannons 920 | . 74 . 846 . Explosions . | . . . . . Melee . | . . . . . Ramming . | . . . . . Kinetic 1460 | . 153 . 846 461 Thermal 644 | . 308 . . 336 Explosive . | . . . . . Electromagnetic . | . . . . . Impact . | . . . . . Slashing . | . . . . . Piercing . | . . . . . Highest Corruption 4 | . 1 1 . 4 Average Corruption 1 | . 1 1 . 3 Corruption Purged . | . . . . . Corruption Blocked . | . . . . . Effects 11 | . 2 3 . 6 Message Errors 2 | . 1 . . 1 Matter Fused 3 | . . 1 . 2 Parts Fused 1 | . . 1 . . Data Loss (major) 1 | . 1 . . . Misfires 4 | . . 1 . 3 Overload Shots . | . . . . . Overflow Damage . | . . . . . Projectiles . | . . . . . Explosions . | . . . . . Melee . | . . . . . Knockbacks 3 | . . . 3 . Impact . | . . . . . Kinetic 3 | . . . 3 . Secondary . | . . . . . Self-Inflicted Damage . | . . . . . Shots . | . . . . . Rammed . | . . . . . Targets Rammed . | . . . . . Kicked . | . . . . . Crushed . | . . . . . Highest Temperature 230 | . 230 . 126 224 Average Temperature 77 | . 91 . 42 97 Received Heat Transfer 838 | . 162 . 264 412 Siege Activations . | . . . . . Robots Corrupted . | . . . . . Combat Hostiles . | . . . . . Parts Fried . | . . . . . Impact Corruptions . | . . . . . Robots Melted . | . . . . . Combat Hostiles . | . . . . . Parts Melted 8 | . 5 . . 3 Heat Transferred 2516 | . 1147 . . 1369 Parts Sabotaged . | . . . . . Parts Stolen . | . . . . . Parts Stripped . | . . . . . Power Chain Reactions . | . . . . . Alert | -11 -10 -10 -9 -9 ------- Run | Yrd Mat Min Mat Sto Peak Influence 362 | . 230 9 215 362 Initial 86 | . . 9 . 86 Average 95 | . 109 8 119 119 Maximum Alert Level 1 | . 1 . 1 1 Low Security (%) 84 | 100 80 100 82 80 Level 1 15 | . 19 . 17 19 Level 2 . | . . . . . Level 3 . | . . . . . Level 4 . | . . . . . Level 5 . | . . . . . High Security . | . . . . . Max Security . | . . . . . Squads Dispatched 8 | . 2 . 1 5 Investigation 2 | . 1 . 1 . Extermination . | . . . . . Reinforcement 2 | . 1 . . 1 Assault 2 | . . . . 2 Garrison 2 | . . . . 2 Intercept . | . . . . . Searches Triggered . | . . . . . Construction Impeded . | . . . . . Haulers Reinforced . | . . . . . Active Scanning Responses . | . . . . . Cargo Convoy Interrupts . | . . . . . Stealth | -11 -10 -10 -9 -9 --------- Run | Yrd Mat Min Mat Sto Distress Signals 3 | . 1 . 1 1 Communications Jammed . | . . . . . Distress Signals . | . . . . . Times Spotted 63 | . 16 . 15 32 Peak Tracking Total 10 | . 6 . 5 10 Tactical Retreats 2 | . 1 . 1 . Traps | -11 -10 -10 -9 -9 ------- Run | Yrd Mat Min Mat Sto Traps Triggered 6 | . 2 . . 4 Indirectly . | . . . . . Trap Hack Attempts . | . . . . . Triggered . | . . . . . Disarmed . | . . . . . Reprogrammed . | . . . . . Reused . | . . . . . Traps Extracted . | . . . . . Installed . | . . . . . Triggered . | . . . . . Machines | -11 -10 -10 -9 -9 ---------- Run | Yrd Mat Min Mat Sto Machines Disabled 1 | . 1 . . . Max in Single Turn 1 | . 1 . . . Machines Repaired . | . . . . . Machines Dismantled . | . . . . . Machines Sabotaged . | . . . . . Overloaded Fab Kills . | . . . . . Hacking | -11 -10 -10 -9 -9 --------- Run | Yrd Mat Min Mat Sto Machines Accessed 13 | . 7 . 4 2 Terminals 10 | . 6 . 3 1 Fabricators . | . . . . . Repair Stations 3 | . 1 . 1 1 Recycling Units . | . . . . . Scanalyzers . | . . . . . Garrison Access . | . . . . . Total Hacks 25 | . 10 . 10 5 Successful 19 | . 9 . 6 4 Failed 6 | . 1 . 4 1 Catastrophic . | . . . . . Database Lockouts . | . . . . . Manual 1 | . . . . 1 Terminals 16 | . 8 . 6 2 Fabricators . | . . . . . Repair Stations 9 | . 2 . 4 3 Recycling Units . | . . . . . Scanalyzers . | . . . . . Garrison Access . | . . . . . Terminal Hacks 12 | . 7 . 4 1 Record 2 | . 1 . . 1 Prototype ID Bank 2 | . 2 . . . Emergency Access Points 2 | . 1 . 1 . Alert Level 1 | . . . 1 . Locate Traps 2 | . 2 . . . Zone Layout 3 | . 1 . 2 . Fabricator Hacks . | . . . . . Repair Station Hacks 7 | . 2 . 2 3 Scan Component 3 | . 1 . 1 1 Repair 3 | . 1 . 1 1 Refit 1 | . . . . 1 Recycling Unit Hacks . | . . . . . Scanalyzer . | . . . . . Garrison Access Hacks . | . . . . . Unauthorized Hacks . | . . . . . Terminals . | . . . . . Fabricators . | . . . . . Repair Stations . | . . . . . Recycling Units . | . . . . . Scanalyzers . | . . . . . Garrison Access . | . . . . . Data Cores Recovered 1 | . . . 1 . Used . | . . . . . Hacking Detections 5 | . 1 . 2 2 Full Trace Events 2 | . . . 2 . Feedback Events . | . . . . . Feedback Blocked . | . . . . . Robot Schematics Acquired . | . . . . . Robots Built . | . . . . . Authchips . | . . . . . Time . | . . . . . Total Robot Build Rating . | . . . . . Part Schematics Acquired . | . . . . . Parts Built . | . . . . . Authchips . | . . . . . Time . | . . . . . Total Part Build Rating . | . . . . . Parts Repaired 3 | . 1 . 1 1 Time 96 | . 26 . 26 44 Parts Recycled . | . . . . . Recycled Matter . | . . . . . Retrieved Matter . | . . . . . Retrieved Components . | . . . . . Parts Scanalyzed . | . . . . . Part Schematics Acquired . | . . . . . Parts Damaged . | . . . . . Bothacking | -11 -10 -10 -9 -9 ------------ Run | Yrd Mat Min Mat Sto Used RIF Installer . | . . . . . Robots Hacked . | . . . . . Non-combat . | . . . . . Combat . | . . . . . Robot Hacks Applied . | . . . . . Relay Couplers Released . | . . . . . Fabnet Peak Effective % . | . . . . . Robots Rewired . | . . . . . Allies Hacked . | . . . . . Hacks Repelled . | . . . . . Allies | -11 -10 -10 -9 -9 -------- Run | Yrd Mat Min Mat Sto Total Allies 2 | . . . . 2 Largest Group 2 | . . . . 2 Highest-Rated Group 62 | . . . . 62 Highest-Rated Ally 31 | . . . . 31 Total Orders . | . . . . . Ally Attacks 18 | . . . . 18 Total Damage 305 | . . . . 305 Kills 2 | . . . . 2 Allies Corrupted . | . . . . . Allies Melted . | . . . . . Intel | -11 -10 -10 -9 -9 ------- Run | Yrd Mat Min Mat Sto Robot Analysis Total . | . . . . . Derelict Logs Recovered 2 | . . 2 . . Drone Launches . | . . . . . Drone Recoveries . | . . . . . Exploration | -11 -10 -10 -9 -9 ------------- Run | Yrd Mat Min Mat Sto Turns Passed 2801 | 62 992 446 654 647 Spaces Moved 1496 | 62 606 273 315 240 Core 37 | 23 14 . . . Treads 1203 | . 375 273 315 240 Legs . | . . . . . Wheels 164 | 39 125 . . . Hover . | . . . . . Flight 92 | . 92 . . . Fastest Speed 32 | 50 32 160 160 160 Average Speed 142 | 76 125 160 160 160 Slowest Speed 250 | 100 250 160 160 160 Overloaded Moves . | . . . . . Propulsion Burnouts . | . . . . . Robots Hopped 3 | . 3 . . . Cave-ins Triggered . | . . . . . Exploration Rate (%) 42 | 3 79 56 24 51 Regions Visited 4 Branch Regions 2 Pre-discovered Areas 1 | . . 1 . . Known Exits Taken . | . . . . . Unknown Exits Taken 4 | 1 1 1 1 . Scrap Searched 1 | . . 1 . . Spaces Dug . | . . . . . Terrain Destroyed . | . . . . . Melee . | . . . . . Projectile . | . . . . . AOE . | . . . . . Terrain Rammed . | . . . . . Walls Destroyed . | . . . . . Machines Disabled . | . . . . . Actions | -11 -10 -10 -9 -9 --------- Run | Yrd Mat Min Mat Sto Total 1926 | 76 758 282 394 416 Wait 172 | . 55 7 26 84 Move 1486 | 61 599 272 314 240 Hop 3 | . 3 . . . Pick Up 41 | 9 21 1 2 8 Fast Attach 5 | . 3 . 2 . Attach 20 | 6 6 . 1 7 Detach 2 | . 2 . . . Swap 17 | . 9 1 2 5 Drop 24 | . 14 1 2 7 Fire 156 | . 46 . 45 65 Melee . | . . . . . Ram . | . . . . . Kick . | . . . . . Crush . | . . . . . Escape Stasis . | . . . . . Rewire . | . . . . . Trap . | . . . . . Miscellaneous . | . . . . . Route ------- -11/Scrapyard -10/Materials (discovered 3 exits: *Mat x2 / [*Min]) -10/Mines (discovered 2 exits: *Mat x2) -9/Materials (discovered 2 exits: [*Mat] / *Sto) -9/Storage History --------- Turn | Location | Event 3 | -11/Scrapyard | Discovered new exit (range 15) 63 | -11/Scrapyard | Entered Materials 161 | -10/Materials | Discovered new exit (range 12) 591 | -10/Materials | Build established: Mutant 626 | -10/Materials | Discovered new exit (range 16) 862 | -10/Materials | Discovered new exit (range 9) 978 | -10/Materials | Repaired Lgt. Treads 1055 | -10/Materials | Entered Mines 1075 | -10/Mines | Discovered new exit (range 7) 1178 | -10/Mines | Met a Derelict bent on vengeance 1331 | -10/Mines | Learned Materials terminal intel 1415 | -10/Mines | A weapon hastily lodged in a ceiling crevice suddenly fell to the ground 1460 | -10/Mines | Discovered new exit (range 13) 1501 | -10/Mines | Entered Materials 1501 | -9/Materials | Evolved 2 slots: Utility x2 1502 | -9/Materials | Loaded intel: 12 terminal locations 1606 | -9/Materials | Discovered new exit (range 15) 1835 | -9/Materials | Discovered new exit (range 6) 2130 | -9/Materials | Repaired Propulsion Shielding 2155 | -9/Materials | Entered Storage 2440 | -9/Storage | Core integrity fell below 50% 2635 | -9/Storage | Repaired Mak. Sword? 2656 | -9/Storage | Core integrity fell below 20% 2675 | -9/Storage | Garrison activated, responded to threat 2734 | -9/Storage | Destroyed 8 combat bots 2748 | -9/Storage | Met a pair of Derelict thieves 2790 | -9/Storage | Garrison activated, responded to threat 2802 | -9/Storage | Destroyed by G-47 Trooper with Particle Gun Last Messages --------------- 02772_ C-30 ARC bursts open, deploying its payload. 02772_ G-47 Trooper unfolds itself. 02772_ L-31 Rogue unfolds itself. 02772_ G-34 Mercenary unfolds itself. 02776_ G-34 Mercenary suffers critical hit (Burn). 02776_ G-34 Mercenary destroyed. 02784_ G-47 Trooper destroyed. 02789_ SX-TDV(g) Imp. Heat Sink severed. 02790_ ALERT: Activating Garrison Access S001. 02791_ 0L8ZJMFRUIH>XLPC 02798_ Lgt. Treads severed. 02798_ Hcp. Battery destroyed. 02799_ L-31 Rogue destroyed. 02802_ K-01 Serf collects debris. Map ----- +----------------------------------------------------+ | | | | | | | | | | | | | | | | | | | | | | | | | ????????????????????????????????????????? | | ????????????????????????????????????????? | | ????????????????????????????????????????? | | ????????????????????????????????????????? | | ????????????????????????????????????????? | | ????????????????????????????????????????? | | ?????????????????????########???????????? | | ?????????????????????#[ [ ]#???????????? | | ?????????????????????#[ ] #???????????? | | ?????????????????????# ]]#???????????? | | ?????????????????????# #???????????? | | ?????????????????????##" "###???????????? | | ?????????????????????# ==T#????????????? | | ?????????????????????# []@##????? #?????? | | ????????????????????#####g##### #?????? | | ????????????????????# g[% #?????? | | ????????????????????# [*g #?????? | | ????????????????????# !% i #?????? | | ????????????????????# %###########?????? | | ??????????#######???# =###########?????? | | ??????????# ??# # ! """"" #?????? | | ??????????# !?#a # ""T"" #?????? | | ??????????# # [# #?????? | | ????????? + uk %+% %% % #?????? | | ??????????# #^^=# ""*[""" #?????? | | ??????????# """ """ # ^ # """%""" #?????? | | ????????????""" """?# # """=""" #????? | | ??????????????" ""??# # %*%=! ##????? | | ????????????????##### #####+#####?????? | | ?????????????????#""" # ? ?????????? | | ?????????????????#"R # "?"""?????????? | | ?????????????????#""" # "?????????????? | | ?????????????##??#### # "?????????????? | | ??????#??????#""????# + """""" #??????? | | ?????? ###"T"#### # #??????? | | ?????# # #??????? | | ?????# + #??????? | | ?????# # #??????? | +----------------------------------------------------+ Best States ------------- Heat Dissipation 28 Energy Generation 12 Energy Capacity 700 Matter Stores 300 Matter Capacity 300 Sight Range 16 Robot Scan Range 14 Terrain Scan Density 10 Armor Coverage 150 Propulsion Shielding 33 Evasion (%) 63 Recoil Reduction 2 Item Schematics ----------------- None Robot Schematics ------------------ None Fabricated ------------ Nothing Alien Tech Used ----------------- None Achievements -------------- None Challenges ------------ None Game ------ Seed HugeDeuteriumTube Manual? 0 Play Time 00:40:04 Cumulative 5.3 hours Start 2024.05.01 @ 22:30:44 End 2024.05.01 @ 23:10:11 Sessions 1 Manual Loads 0 Difficulty Rogue Special Mode None Game No. 6 Rogue 6 Adventurer 0 Explorer 0 Win Type - Total 0 Types 0/0/0/0/0/0/0/0/0 Lore% 8 Gallery% 11 Achievement% 9 Wizard Run 0 Options --------- Layout 1 ASCII 0 Keyboard 0 Movement Mouse Keybinds 0 Fullscreen 1 Font 24/Swanston Map View 50x35 Zoom Use 0% Tactical HUD 1 Map Filters NONE Filters NONE Steam 1 RUN: ccaf05c8-c5b3-4aab-9162-e1cf2a6a3b41